[Event "European Corporate Championship 2022"]
[Site "Rotterdam"]
[Date "2022.06.18"]
[Round "3.9"]
[White "Konijn, Bart"]
[Black "Van Wely, Loek"]
[Result "1/2-1/2"]
[ECO "B80"]
[WhiteElo "2224"]
[BlackElo "2618"]
[Annotator "TA"]
[PlyCount "108"]
[EventDate "2022.06.18"]
[EventType "team-tourn"]
[EventCountry "NED"]
[SourceTitle "playchess.com"]
[Source "ChessBase"]
[SourceQuality "1"]
[TimeControl "900+5"]

{[%evp 16,108,17,20,15,15,14,9,9,0,13,14,66,0,37,36,30,0,60,60,54,47,137,114,115,0,0,-4,-1,-12,-11,-24,0,0,0,0,51,0,160,164,173,51,55,0,31,0,229,241,275,287,275,270,337,228,212,-115,270,274,302,300,287,292,288,203,198,209,206,202,208,203,215,209,230,230,229,211,314,314,299,258,258,253,307,304,317,312,317,317,278,12,12,12,13,13,13]} 1. e4 {[%emt 0:00:02]} c5 {[%emt 0:00:01]} 2. Nf3 {[%emt 0:00:01]} e6 {[%emt 0:00:02]} 3. d4 {[%emt 0:00:02]} cxd4 {[%emt 0:00:01]} 4. Nxd4 {[%emt 0:00:01]} Nc6 {[%emt 0:00:01]} 5. Nc3 {[%emt 0:00:05]} d6 {[%emt 0:00:03]} 6. Be3 {[%emt 0:00:18]} Nf6 {[%emt 0:00:05]} 7. Bd3 {[%emt 0:00:31]} Be7 {[%emt 0:00:12]} 8. O-O {[%emt 0:00:34]} O-O {[%emt 0:00:03]} 9. Kh1 {[%emt 0:00:27] has lost popularity (9.h3).} e5 {[%emt 0:00:23] B80: Sicilian Scheveningen: 6 g3 and 6 Be3, including English Attack.} 10. Nde2 {[%emt 0:01:06]} Nb4 {[%emt 0:01:43]} 11. f4 {[%emt 0:02:36]} Be6 {[%emt 0:02:41]} 12. f5 {[%emt 0:01:26]} Bd7 {[%emt 0:00:56]} 13. Bc4 {[%emt 0:00:20] [#]} b5 $146 {[%emt 0:00:34]} (13... Bc6 $11) ({Predecessor:} 13... Bc6 14. Nd5 Nbxd5 15. exd5 b5 16. Bb3 Bd7 17. a4 bxa4 18. Bxa4 Bxa4 19. Rxa4 Qb8 {1-0 (61) Larsen,B (2530)-Hansen,C (2550) Espoo 1989}) 14. Bb3 {[%emt 0:00:42]} (14. Bxb5 $14 Bxb5 15. Nxb5) 14... Bc6 {[%emt 0:00:44]} 15. a3 {[%emt 0:00:17]} Na6 {[%emt 0:00:04]} 16. Bd5 {[%emt 0:00:03]} Qd7 {[%emt 0:00:31]} (16... Bxd5 $11 17. exd5 Qd7) 17. Bxc6 $14 {[%emt 0:03:33]} Qxc6 {[%emt 0:00:03]} 18. Nd5 {[%emt 0:00:03]} Rfe8 {[%emt 0:01:35]} (18... Nxd5 $14 19. exd5 Qd7) 19. Nec3 {[%emt 0:00:16] White is more active.} Nc7 {[%emt 0:00:09]} 20. Nxf6+ {[%emt 0:00:50]} (20. Nxc7 $16 Qxc7 21. Bg5 (21. Nxb5 Qb7 $11)) 20... Bxf6 $11 {[%emt 0:00:03]} 21. Qd3 {[%emt 0:00:02]} a5 {[%emt 0:00:36]} 22. Rfd1 {[%emt 0:00:22]} b4 {[%emt 0:00:25]} 23. Ne2 {[%emt 0:00:07]} Red8 {[%emt 0:01:32]} 24. axb4 {[%emt 0:00:24]} axb4 {[%emt 0:00:02]} 25. Rxa8 {[%emt 0:00:02]} Nxa8 {[%emt 0:00:02]} (25... Qxa8 $11 26. Bb6 Qc6 27. Bxc7 Qxc7) 26. c4 {[%emt 0:00:18]} ({White should try} 26. c3 $14) 26... bxc3 $2 {[%emt 0:00:26]} (26... Nc7 $11) 27. Nxc3 $16 {[%emt 0:00:03]} Nc7 {[%emt 0:00:02]} 28. Rc1 {[%emt 0:00:21]} (28. b4 $1 $18) 28... Qb7 $14 {[%emt 0:00:10]} 29. Qc4 {[%emt 0:00:42]} (29. b4 $14) 29... h5 {[%emt 0:00:39]} 30. Na4 {[%emt 0:00:19]} Nb5 {[%emt 0:00:48]} (30... Ne8 $11) 31. Bb6 $18 {[%emt 0:00:11]} Rb8 {[%emt 0:01:29]} 32. Qxb5 {[%emt 0:00:13]} Qxe4 {[%emt 0:00:02]} 33. Qd7 {[%emt 0:00:15]} Qf4 {[%emt 0:00:35]} 34. Rd1 {[%emt 0:00:17]} e4 {[%emt 0:00:10]} 35. Qc7 $2 {[%emt 0:00:41] [#]} (35. Qxd6 $2 Be5 36. Qxb8+ Bxb8 $19) (35. Bg1 $18) 35... Ra8 $2 {[%emt 0:00:14][%mdl 8192]} (35... Rxb6 $1 $17 {[%mdl 512] stays on course.} 36. Qxb6 (36. Nxb6 $2 {is the wrong capture.} Be5 $19) 36... e3) 36. Nc3 {[%emt 0:00:02]} ({Don't play} 36. Qc6 $6 Rb8 $18) 36... Be5 {[%emt 0:00:18][%csl Ge5][%cal Rf4h2]} 37. Bg1 {[%emt 0:00:01]} Qxf5 {[%emt 0:00:17]} 38. Qb7 {[%emt 0:00:03][%csl LRa8,LRe4]} Re8 {[%emt 0:00:17]} 39. Qxe4 {[%emt 0:00:03]} ({Much less strong is} 39. Nxe4 Bxh2 40. Bxh2 Rxe4 41. Bxd6 Qe6 $18) 39... Qxe4 {[%emt 0:00:02]} 40. Nxe4 {[%emt 0:00:01]} Bxb2 {[%emt 0:00:01]} 41. Nxd6 {[%emt 0:00:01]} Rd8 {[%emt 0:00:01]} 42. Rd2 {[%emt 0:00:10]} Bc3 {[%emt 0:00:04] [#]} 43. Rc2 {[%emt 0:00:09] Strongly threatening Nxf7.} Bb4 {[%emt 0:00:06]} 44. Rc8 {[%emt 0:00:09]} Rxc8 {[%emt 0:00:05]} 45. Nxc8 {[%emt 0:00:01]} f5 {[%emt 0:00:10]} (45... Kh7 {was worth a try.} 46. g3 Bf8) 46. Be3 {[%emt 0:00:04]} Kf7 {[%emt 0:00:04]} 47. Nb6 {[%emt 0:00:02]} Ke6 {[%emt 0:00:02]} 48. Kg1 {[%emt 0:00:04]} f4 {[%emt 0:00:05]} 49. Bf2 {[%emt 0:00:05]} g5 {[%emt 0:00:02] [#]} 50. Kf1 $1 {[%emt 0:00:16]} g4 {[%emt 0:00:04]} 51. Ke2 {[%emt 0:00:03]} Bd6 {[%emt 0:00:02][%cal Of4f3]} 52. Nc4 $2 {[%emt 0:00:07]} ({White should play} 52. Bg1 $18) 52... f3+ $1 $11 {[%emt 0:00:04] The position is equal.} 53. gxf3 {[%emt 0:00:08]} gxf3+ {[%emt 0:00:01]} 54. Kxf3 {[%emt 0:00:04]} Bxh2 {[%emt 0:00:01] Weighted Error Value: White=0.44/Black=0.45} 1/2-1/2

[Event "European Corporate Championship 2022"]
[Site "Rotterdam"]
[Date "2022.06.18"]
[Round "3.10"]
[White "Lambrechts, Koen"]
[Black "Schelvis, Richard"]
[Result "1-0"]
[ECO "B40"]
[WhiteElo "2349"]
[BlackElo "2157"]
[Annotator "TA"]
[PlyCount "63"]
[EventDate "2022.06.18"]
[EventType "team-tourn"]
[EventCountry "NED"]
[SourceTitle "playchess.com"]
[Source "ChessBase"]
[SourceQuality "1"]
[TimeControl "900+5"]

{[%evp 9,63,-23,29,29,67,8,69,74,74,60,72,65,79,81,84,31,25,0,0,3,0,6,53,62,117,95,175,181,192,178,171,166,396,400,395,400,362,387,687,668,793,758,667,578,939,942,975,963,1687,297,318,312,295,306,288,282]} 1. e4 {[%emt 0:00:02]} c5 {[%emt 0:00:02]} 2. Nf3 {[%emt 0:00:03]} e6 {[%emt 0:00:01]} 3. d4 {[%emt 0:00:03]} cxd4 {[%emt 0:00:02]} 4. Nxd4 {[%emt 0:00:02]} Nf6 {[%emt 0:00:03]} 5. Qe2 {[%emt 0:01:17]} Qb6 {[%emt 0:00:39]} (5... Nc6 $142 6. Nxc6 bxc6) 6. Nb3 $11 {[%emt 0:00:10] [#] B40: Sicilian: 2...e6, Unusual lines.} d6 $146 {[%emt 0:00:57]} ({Predecessor:} 6... Nc6 7. Nc3 Bb4 8. Bd2 O-O 9. a3 Be7 10. O-O-O Qc7 11. g4 d6 12. g5 Nd7 13. f4 a6 14. h4 b5 15. h5 Bb7 16. g6 fxg6 17. hxg6 {1-0 (25) Rorrer,G (2191)-Prohorov,O (2086) Chess.com INT 2022}) 7. g4 {[%emt 0:00:19]} ({White should play} 7. Nc3 $14) 7... Be7 {[%emt 0:00:33]} ({Black should try} 7... d5 $11) 8. g5 {[%emt 0:00:31] White is slightly better.} Nfd7 {[%emt 0:00:04]} 9. h4 {[%emt 0:00:14]} Nc6 {[%emt 0:00:38]} 10. Be3 {[%emt 0:00:39]} Qc7 {[%emt 0:00:12][%cal Ob7b5]} 11. Nc3 {[%emt 0:00:30]} a6 {[%emt 0:00:18]} 12. a4 {[%emt 0:00:08]} (12. O-O-O $16) 12... Nc5 $14 {[%emt 0:00:47]} 13. Nxc5 {[%emt 0:00:33]} dxc5 {[%emt 0:00:02]} 14. f4 {[%emt 0:00:39]} Nd4 {[%emt 0:01:32]} 15. Qf2 {[%emt 0:00:06]} Qb6 {[%emt 0:00:32]} (15... Bd7 $11) 16. O-O-O {[%emt 0:00:07][%cal Rd1d4]} Qa5 {[%emt 0:01:53] White leaves nothing to chance now.} (16... Bd7 $14) 17. h5 {[%emt 0:01:02]} ({Resist} 17. Bxd4 cxd4 18. Qxd4 O-O $14) 17... Bd7 {[%emt 0:00:31]} (17... Qc7 $16 {is a better defense.}) 18. Bxd4 $18 {[%emt 0:00:15]} cxd4 {[%emt 0:00:02]} 19. Qxd4 {[%emt 0:00:02]} O-O-O {[%emt 0:00:10]} 20. Qxg7 {[%emt 0:00:24]} Bxa4 $2 {[%emt 0:01:29]} (20... Rdf8 21. Kb1 (21. Qd4 Bc6 $16) 21... Qc7) 21. Bh3 {[%emt 0:01:11]} Bb4 {[%emt 0:01:04]} 22. Nxa4 {[%emt 0:00:20]} Qxa4 {[%emt 0:00:06][%cal Ra4a1] [#]} 23. Kb1 {[%emt 0:00:04] Against Qa1+. Active counter play!} Rhf8 {[%emt 0:00:47]} (23... Qc6 24. Qxf7 Rde8) 24. Rxd8+ {[%emt 0:00:19]} Rxd8 {[%emt 0:01:05]} 25. Qxf7 {[%emt 0:00:12]} Kb8 {[%emt 0:00:22]} 26. Qxe6 {[%emt 0:00:09]} Rd6 {[%emt 0:00:30]} 27. Qe5 {[%emt 0:02:28]} Ka8 {[%emt 0:00:40]} 28. g6 {[%emt 0:00:09]} Rc6 {[%emt 0:00:15]} 29. Rc1 $2 {[%emt 0:00:03]} (29. b3 Qb5 30. Qxb5 axb5 31. g7) 29... Bc3 {[%emt 0:00:26] [#] White has a decisive advantage.} 30. g7 $1 {[%emt 0:01:23]} ({Not} 30. Qe8+ Ka7 31. Qxc6 (31. gxh7 {is a self mate.} Bxb2) 31... Qxc6 32. bxc3 hxg6 33. hxg6 Qxg6 $15) 30... Bxe5 {[%emt 0:00:38]} 31. g8=Q+ {[%emt 0:00:05]} Bb8 {[%emt 0:00:01]} 32. Bd7 {[%emt 0:00:05] Weighted Error Value: White=0.41/Black=0.46} 1-0

[Event "European Corporate Championship 2022"]
[Site "Rotterdam"]
[Date "2022.06.18"]
[Round "3.11"]
[White "Jap Tjoen San, Linda"]
[Black "Rietman, Frits"]
[Result "0-1"]
[ECO "B01"]
[WhiteElo "2045"]
[BlackElo "2237"]
[Annotator "TA"]
[PlyCount "94"]
[EventDate "2022.06.18"]
[EventType "team-tourn"]
[EventCountry "NED"]
[SourceTitle "playchess.com"]
[Source "ChessBase"]
[SourceQuality "1"]
[TimeControl "900+5"]

{[%evp 9,94,10,24,20,45,39,46,48,53,61,64,37,66,30,37,12,5,14,29,17,62,34,52,62,100,0,0,0,14,0,0,-65,-64,-94,-71,-70,-22,-128,-83,-70,-76,-145,-129,-206,-193,-204,-197,-522,-225,-228,-232,-293,-286,-297,-254,-518,-391,-546,-537,-533,-533,-1006,-992,-1056,-955,-2119,-2140,-2091,-982,-1525,-1486,-2061,-1966,-1913,-1914,-2361,-2232,-1710,-1610,-29995,-29996,-29996,-29997,-29997,-29998,-29998,-29999]} 1. e4 {[%emt 0:00:04]} d5 {[%emt 0:00:05]} 2. exd5 {[%emt 0:00:02]} Qxd5 {[%emt 0:00:05]} 3. d4 {[%emt 0:00:03]} e5 {[%emt 0:00:18]} 4. Nf3 {[%emt 0:00:20]} exd4 {[%emt 0:00:30]} 5. Qxd4 {[%emt 0:00:02]} Qxd4 {[%emt 0:00:26]} (5... Qe6+ {feels hotter.} 6. Be3 Nc6 7. Bb5 Bd7) 6. Nxd4 {[%emt 0:00:02] B01: Scandinavian Defence.} c6 {[%emt 0:00:13] [#]} 7. Bf4 $146 {[%emt 0:00:14]} ({Predecessor:} 7. Nc3 Bb4 8. Bg5 h6 9. Bh4 Ne7 10. O-O-O O-O 11. a3 Ng6 12. axb4 Nxh4 13. g3 {1-0 (28) Kobalia,M (2614)-Balla,T (2348) Chess.com INT 2020}) 7... Bc5 {[%emt 0:00:19]} 8. Nb3 {[%emt 0:00:03] White is slightly better.} Be7 {[%emt 0:00:43]} 9. N1d2 {[%emt 0:00:22]} Nf6 {[%emt 0:00:22] Inhibits Ne4.} 10. O-O-O {[%emt 0:00:14]} O-O {[%emt 0:00:18]} 11. Re1 {[%emt 0:00:03]} Re8 {[%emt 0:00:56]} 12. h3 {[%emt 0:00:23]} Nbd7 {[%emt 0:00:26]} 13. g4 {[%emt 0:00:25]} Kf8 {[%emt 0:01:06]} 14. Bg2 {[%emt 0:00:16]} Nb6 {[%emt 0:00:19]} 15. Bg3 {[%emt 0:01:03]} Be6 {[%emt 0:01:26]} 16. Na5 {[%emt 0:03:43]} Bc8 {[%emt 0:00:25]} 17. Nxc6 {[%emt 0:00:15]} bxc6 $11 {[%emt 0:00:02]} 18. Bxc6 {[%emt 0:00:01]} Be6 {[%emt 0:00:21]} 19. Bxa8 {[%emt 0:00:19]} Rxa8 {[%emt 0:00:02]} 20. Nb3 {[%emt 0:00:15]} (20. Kb1 $11) 20... Bd5 $15 {[%emt 0:00:53][%mdl 1024] Black has compensation.} 21. Rh2 {[%emt 0:00:07]} Ne4 {[%emt 0:00:16]} 22. Bf4 {[%emt 0:00:03]} Bh4 {[%emt 0:00:26]} (22... g5 $15 23. Be5 Nc4) 23. Be3 {[%emt 0:00:19]} (23. Nd2 $11 {keeps the balance.} Nxd2 24. Bxd2) 23... Rc8 {[%emt 0:00:48]} 24. Rd1 {[%emt 0:00:13]} Ba8 {[%emt 0:00:37] Black is much more active.} 25. f4 {[%emt 0:00:25]} ({White should try} 25. Kb1) 25... Bg3 $17 {[%emt 0:00:47] This bishop pair is nice.} 26. Rg2 {[%emt 0:00:44]} (26. Re2 $17) 26... Nd5 $19 {[%emt 0:00:04]} 27. Bc5+ {[%emt 0:00:51]} Kg8 {[%emt 0:00:08]} ({Worse is} 27... Nxc5 28. Rxg3 Nxf4 29. Re3 $11) 28. Bxa7 $2 {[%emt 0:00:15] [#]} (28. Rxg3 Nxg3 29. f5) 28... Nxf4 {[%emt 0:00:12]} (28... Bxf4+ $142 29. Rgd2 Nb4) 29. Rxg3 {[%emt 0:01:09]} Nxg3 {[%emt 0:00:02]} 30. h4 {[%emt 0:00:09]} Bf3 {[%emt 0:00:22][%csl LRd1,LRg4]} 31. Rd6 {[%emt 0:00:51]} Re8 {[%emt 0:00:20]} 32. Be3 $2 {[%emt 0:00:13]} (32. Nd4 {was necessary.} Bxg4 33. b4) 32... Ng2 {[%emt 0:00:52]} 33. Bf2 {[%emt 0:00:15]} Ne4 {[%emt 0:00:05]} 34. Rd3 {[%emt 0:00:10]} Be2 {[%emt 0:00:23]} 35. Rh3 {[%emt 0:01:29]} Nxf2 {[%emt 0:00:13]} 36. Rh2 {[%emt 0:00:00]} Bf3 {[%emt 0:00:20]} 37. Nd4 {[%emt 0:00:05]} Re1+ {[%emt 0:00:19]} 38. Kd2 {[%emt 0:00:01]} Rd1+ {[%emt 0:00:11]} 39. Kc3 {[%emt 0:00:05]} Ne4+ {[%emt 0:00:23]} 40. Kc4 {[%emt 0:00:02]} Ne3+ {[%emt 0:00:02]} 41. Kb5 {[%emt 0:00:13]} Rxd4 {[%emt 0:00:03]} 42. a4 {[%emt 0:00:03]} Nd6+ {[%emt 0:00:08]} 43. Kc5 {[%emt 0:00:01]} Rd5+ {[%emt 0:00:12]} 44. Kb6 {[%emt 0:00:04]} Nec4+ {[%emt 0:00:06] Black mates.} 45. Kc7 {[%emt 0:00:04]} Rc5+ {[%emt 0:00:07]} 46. Kd8 {[%emt 0:00:35]} Bxg4 {[%emt 0:00:16]} 47. b3 {[%emt 0:00:00] [#]} Kf8 $1 {[%emt 0:00:07] Weighted Error Value: White=0.97/Black=0.35} 0-1

[Event "European Corporate Championship 2022"]
[Site "Rotterdam"]
[Date "2022.06.18"]
[Round "3.14"]
[White "Theulings, Paul-Peter"]
[Black "Dekker, Derk"]
[Result "1-0"]
[ECO "C40"]
[WhiteElo "2063"]
[BlackElo "1893"]
[Annotator "NA RC"]
[PlyCount "77"]
[EventDate "2022.06.18"]
[EventType "team-tourn"]
[EventCountry "NED"]
[SourceTitle "playchess.com"]
[Source "ChessBase"]
[SourceQuality "1"]
[TimeControl "900+5"]

1. Nf3 {[%emt 0:00:03]} f5 {[%emt 0:00:02]} 2. d3 {[%emt 0:00:02]} Nc6 {[%emt 0:00:06]} 3. e4 {[%emt 0:00:03]} e5 {[%emt 0:00:06]} 4. d4 {[%emt 0:00:02]} exd4 {[%emt 0:00:20]} 5. exf5 {[%emt 0:00:33]} Nf6 {[%emt 0:01:21]} 6. Nxd4 {[%emt 0:00:14]} Bb4+ {[%emt 0:01:21]} 7. c3 {[%emt 0:00:13]} Bc5 {[%emt 0:00:13]} 8. Nxc6 {[%emt 0:00:25]} bxc6 {[%emt 0:00:18]} 9. Bd3 {[%emt 0:00:27]} O-O {[%emt 0:00:49]} 10. O-O {[%emt 0:00:07]} d5 {[%emt 0:00:23]} 11. Bg5 {[%emt 0:00:36]} Qd6 {[%emt 0:00:44]} 12. Nd2 {[%emt 0:00:54]} a5 {[%emt 0:01:05]} 13. Re1 {[%emt 0:00:32]} a4 {[%emt 0:00:51]} 14. Qf3 {[%emt 0:00:56]} Rb8 {[%emt 0:00:30]} 15. b4 {[%emt 0:00:58]} Ba7 {[%emt 0:00:46]} 16. a3 {[%emt 0:00:41]} c5 {[%emt 0:01:01]} 17. Rad1 {[%emt 0:00:29]} Bb7 {[%emt 0:00:57]} 18. Qh3 {[%emt 0:00:44]} h6 {[%emt 0:01:51]} 19. Bh4 {[%emt 0:00:40]} Rbe8 {[%emt 0:00:22]} 20. g4 {[%emt 0:02:15]} cxb4 {[%emt 0:01:28]} 21. axb4 {[%emt 0:00:34]} Qf4 {[%emt 0:00:11]} 22. Rxe8 {[%emt 0:02:29]} Rxe8 {[%emt 0:00:10]} 23. Qg3 {[%emt 0:00:44]} Qxg4 {[%emt 0:00:32]} 24. Qxg4 {[%emt 0:00:26]} Nxg4 {[%emt 0:00:02]} 25. Bb5 {[%emt 0:00:30]} Re5 {[%emt 0:00:34]} 26. h3 {[%emt 0:00:22]} Nf6 {[%emt 0:00:21]} 27. Bd3 {[%emt 0:00:36]} Ne4 {[%emt 0:00:33]} 28. Nxe4 {[%emt 0:00:07]} dxe4 {[%emt 0:00:01]} 29. Bc4+ {[%emt 0:00:02]} Kh7 {[%emt 0:00:08]} 30. Rd8 {[%emt 0:00:31]} Rxf5 {[%emt 0:00:12]} 31. Rd7 {[%emt 0:00:06]} Bb6 {[%emt 0:00:01]} 32. Bg3 {[%emt 0:00:10]} Rf6 {[%emt 0:00:19]} 33. Bxc7 {[%emt 0:00:03]} Bxf2+ {[%emt 0:00:03]} 34. Kh2 {[%emt 0:00:04]} e3 {[%emt 0:00:03]} 35. Bd3+ {[%emt 0:00:03]} Rg6 {[%emt 0:00:05]} 36. Bxg6+ {[%emt 0:00:04]} Kxg6 {[%emt 0:00:01]} 37. Re7 {[%emt 0:00:04]} Bf3 {[%emt 0:00:12]} 38. c4 {[%emt 0:00:02]} e2 {[%emt 0:00:01]} 39. Bg3 {[%emt 0:00:12]} 1-0

[Event "European Corporate Championship 2022"]
[Site "Rotterdam"]
[Date "2022.06.18"]
[Round "3.15"]
[White "Vosooghi Dizaji, Mehdi"]
[Black "Malachi, Avraham"]
[Result "1/2-1/2"]
[ECO "C34"]
[WhiteElo "1878"]
[BlackElo "1997"]
[Annotator "NA RC"]
[PlyCount "99"]
[EventDate "2022.06.18"]
[EventType "team-tourn"]
[EventCountry "NED"]
[SourceTitle "playchess.com"]
[Source "ChessBase"]
[SourceQuality "1"]
[TimeControl "900+5"]

1. e4 {[%emt 0:00:03]} e5 {[%emt 0:00:01]} 2. f4 {[%emt 0:00:04]} exf4 {[%emt 0:00:02]} 3. Nf3 {[%emt 0:00:02]} d6 {[%emt 0:00:01]} 4. Bc4 {[%emt 0:00:02]} Be6 {[%emt 0:00:04]} 5. Qe2 {[%emt 0:00:42]} Nf6 {[%emt 0:00:50]} 6. Nc3 {[%emt 0:00:08]} c6 {[%emt 0:01:08]} 7. d4 {[%emt 0:00:24]} d5 {[%emt 0:00:19]} 8. exd5 {[%emt 0:00:12]} Nxd5 {[%emt 0:00:31]} 9. O-O {[%emt 0:00:20]} Be7 {[%emt 0:01:39]} 10. Bd2 {[%emt 0:00:38]} O-O {[%emt 0:00:16]} 11. a3 {[%emt 0:01:00]} Bf6 {[%emt 0:00:21]} 12. Ne4 {[%emt 0:00:13]} Bg4 {[%emt 0:00:50]} 13. Nxf6+ {[%emt 0:00:38]} Qxf6 {[%emt 0:00:11]} 14. c3 {[%emt 0:00:18]} Nd7 {[%emt 0:00:12]} 15. Rae1 {[%emt 0:00:24]} h6 {[%emt 0:01:18]} 16. Bd3 {[%emt 0:01:36]} Bf5 {[%emt 0:00:36]} 17. Bc4 {[%emt 0:00:17]} g5 {[%emt 0:00:15]} 18. h3 {[%emt 0:00:52]} Kg7 {[%emt 0:00:16]} 19. Nh2 {[%emt 0:00:16]} Rae8 {[%emt 0:01:05]} 20. Qxe8 {[%emt 0:08:36]} Rxe8 21. Rxe8 {[%emt 0:00:00]} N7b6 {[%emt 0:00:18]} 22. Be2 {[%emt 0:00:00]} Nc7 {[%emt 0:00:18]} 23. Re5 {[%emt 0:00:00]} Nd7 {[%emt 0:00:11]} 24. Ra5 {[%emt 0:00:00]} a6 {[%emt 0:00:11]} 25. Ng4 {[%emt 0:00:00]} Qe6 {[%emt 0:00:24]} 26. Re1 {[%emt 0:00:00]} b6 {[%emt 0:00:36]} 27. Bd3 {[%emt 0:00:00]} Qxe1+ {[%emt 0:00:31]} 28. Bxe1 {[%emt 0:00:00]} Bxd3 {[%emt 0:00:01]} 29. Ne5 {[%emt 0:00:00]} bxa5 {[%emt 0:00:07]} 30. Nxd7 {[%emt 0:00:00]} Ne6 {[%emt 0:00:30]} 31. Ne5 {[%emt 0:00:00]} Be4 {[%emt 0:00:11]} 32. h4 {[%emt 0:00:00]} c5 {[%emt 0:00:23]} 33. hxg5 {[%emt 0:00:00]} hxg5 {[%emt 0:00:02]} 34. Bf2 {[%emt 0:00:00]} cxd4 {[%emt 0:00:06]} 35. cxd4 {[%emt 0:00:00]} f5 {[%emt 0:00:27]} 36. Nc4 {[%emt 0:00:00]} g4 {[%emt 0:00:11]} 37. Nxa5 {[%emt 0:00:00]} g3 {[%emt 0:00:04]} 38. Be1 {[%emt 0:00:00]} Kg6 {[%emt 0:00:07]} 39. Bc3 {[%emt 0:00:00]} f3 {[%emt 0:00:27]} 40. gxf3 {[%emt 0:00:00]} Bxf3 {[%emt 0:00:01]} 41. Nc4 {[%emt 0:00:00]} Kg5 {[%emt 0:00:51]} 42. Bd2+ {[%emt 0:00:00]} f4 {[%emt 0:00:07]} 43. Bc3 {[%emt 0:00:00]} Kh4 {[%emt 0:00:22]} 44. Nd6 {[%emt 0:00:07]} Ng5 {[%emt 0:00:17]} 45. Nf5+ {[%emt 0:01:01]} Kh3 {[%emt 0:00:02]} 46. Bd2 {[%emt 0:00:12]} Be4 {[%emt 0:00:14]} 47. Bxf4 {[%emt 0:00:49]} Nf3+ {[%emt 0:00:03]} 48. Kf1 {[%emt 0:00:01]} g2+ {[%emt 0:00:04]} 49. Ke2 {[%emt 0:00:03]} g1=Q {[%emt 0:00:07]} 50. Ne3 {[%emt 0:00:10]} 1/2-1/2

[Event "European Corporate Championship 2022"]
[Site "Rotterdam"]
[Date "2022.06.18"]
[Round "3.17"]
[White "Garcia Ortega, Manuel"]
[Black "Pardo Simon, David"]
[Result "0-1"]
[ECO "B08"]
[WhiteElo "1725"]
[BlackElo "2461"]
[Annotator "TA"]
[PlyCount "74"]
[EventDate "2022.06.18"]
[EventType "team-tourn"]
[EventCountry "NED"]
[SourceTitle "playchess.com"]
[Source "ChessBase"]
[SourceQuality "1"]
[TimeControl "900+5"]

{[%evp 11,74,-42,22,0,-3,-50,-42,-74,-55,-58,-63,-60,-58,-149,-157,-164,-156,-527,-520,-554,-318,-336,-325,-315,-305,-363,-370,-366,-362,-366,-367,-511,-504,-599,-562,-607,-431,-587,-582,-613,-604,-581,-421,-398,-399,-397,-389,-391,-392,-379,-386,-537,-518,-511,-468,-461,-464,-524,-447,-1387,-1489,-29971,-29973,-29972,-6079]} 1. d4 {[%emt 0:00:08]} d6 {[%emt 0:00:09]} 2. Nf3 {[%emt 0:00:05]} g6 {[%emt 0:00:14]} 3. e4 {[%emt 0:00:12]} Bg7 {[%emt 0:00:49]} 4. Bc4 {[%emt 0:00:29]} Nf6 {[%emt 0:00:58]} 5. Nc3 {[%emt 0:00:28]} O-O {[%emt 0:00:27]} 6. h3 {[%emt 0:00:47] [#]} c6 {[%emt 0:00:34]} (6... Nxe4 $1 $15 7. Nxe4 d5) 7. Be3 {[%emt 0:00:26] B08: Pirc Defence: Classical System.} b5 {[%emt 0:01:53][%cal Bb7b5,Bb5b4,Bb4c3,Bc3b2][%mdl 32]} 8. Bb3 {[%emt 0:00:02]} (8. Bd3 $1 $11 {is more appropriate.}) 8... b4 $15 {[%emt 0:00:14]} 9. e5 {[%emt 0:02:13] Black is slightly better.} dxe5 {[%emt 0:00:15]} (9... bxc3 {feels hotter.} 10. exf6 exf6 11. bxc3 Ba6) 10. dxe5 {[%emt 0:00:35]} bxc3 {[%emt 0:00:02]} 11. exf6 {[%emt 0:00:02]} Bxf6 {[%emt 0:00:02]} 12. Bd4 {[%emt 0:00:55]} ({White has to play} 12. bxc3 $15 Bxc3+ 13. Bd2 Bxd2+ 14. Qxd2) 12... cxb2 $17 {[%emt 0:01:03]} 13. Rb1 {[%emt 0:00:08]} Qa5+ {[%emt 0:01:22]} 14. c3 $2 {[%emt 0:00:01]} (14. Qd2 $17 {was the crucial defense.} Qxd2+ 15. Kxd2) 14... Rd8 $19 {[%emt 0:01:13] [#]} 15. O-O $146 {[%emt 0:00:25]} ({Predecessor:} 15. Nd2 Bxd4 16. cxd4 Rxd4 17. Rxb2 Ba6 18. Qf3 Qe5+ 19. Qe3 Qxe3+ 20. fxe3 Rd3 21. Kf2 {0-1 (46) Mizmizlioglu,Z-Polat,A (1456) Konya 2017}) 15... e5 {[%emt 0:00:34]} 16. Nxe5 {[%emt 0:00:57]} Bxe5 {[%emt 0:00:17]} 17. Qf3 {[%emt 0:00:01]} Bf5 {[%emt 0:00:47]} ({Avoid the trap} 17... Bxd4 $2 18. Qxf7+ Kh8 19. cxd4 $19) 18. g4 {[%emt 0:00:17]} Bxd4 {[%emt 0:00:42]} 19. cxd4 {[%emt 0:00:21]} Be6 {[%emt 0:00:08]} ({Weaker is} 19... Rxd4 20. gxf5 Qxf5 21. Qxf5 gxf5 22. Rxb2 $17) (19... Bxb1 $2 {gets mated.} 20. Qxf7+ Kh8 21. Qf6#) 20. Bxe6 {[%emt 0:00:31]} fxe6 {[%emt 0:00:01]} 21. Qf6 {[%emt 0:00:01]} Qd5 {[%emt 0:00:52] ...Nd7 is the strong threat.} 22. Rxb2 {[%emt 0:00:11]} Nd7 {[%emt 0:00:08]} 23. Qf4 {[%emt 0:00:28]} Nb6 {[%emt 0:00:05] Strongly threatening ...c5.} 24. Qf6 {[%emt 0:01:08]} Rf8 {[%emt 0:00:13]} 25. Qe5 {[%emt 0:00:40]} Qxe5 {[%emt 0:00:10]} 26. dxe5 {[%emt 0:00:01]} Rfd8 {[%emt 0:00:08]} 27. Rc2 {[%emt 0:00:09]} Rac8 {[%emt 0:00:03]} 28. Rfc1 {[%emt 0:00:02]} Rd5 {[%emt 0:00:38][%cal Bd8d5,Bd5e5,Be5a5,Ba5a2][%mdl 32] Threatens to win with ...c5.} 29. Rxc6 {[%emt 0:00:03]} Rxc6 {[%emt 0:00:02]} 30. Rxc6 {[%emt 0:00:01]} Rxe5 {[%emt 0:00:01][%mdl 4096] Endgame KRN-KR} 31. Rc7 {[%emt 0:00:12]} Ra5 {[%emt 0:00:03]} 32. Re7 {[%emt 0:00:05]} Rxa2 {[%emt 0:00:19]} 33. Rxe6 {[%emt 0:00:01]} Nd5 {[%emt 0:00:05]} 34. h4 {[%emt 0:00:19]} Nf4 {[%emt 0:00:11]} 35. Rf6 {[%emt 0:00:07]} (35. Rd6 $142) 35... Nh3+ {[%emt 0:00:07]} 36. Kg2 {[%emt 0:00:03] [#]} Rxf2+ $1 {[%emt 0:00:02]} 37. Rxf2 {[%emt 0:00:01]} Nxf2 {[%emt 0:00:01] White did not feel at home in the position after the opening.  Weighted Error Value: White=0.75/Black=0.33} 0-1